fUSD/lending_fUSD_20250113
["ID","MTS","AMOUNT","RATE_DAILY","PERIOD"]
[348717485,1736747450225,-607.5,0.00011095,2]
[348717486,1736747450234,-2152.95,0.00011095,2]
[348717487,1736747450244,-669.02,0.00011095,2]
[348717488,1736747450254,-745.5,0.00011095,2]
[348717489,1736747450264,-2006.99,0.00011095,2]
[348717490,1736747450273,-669.52,0.00011095,2]
[348717491,1736747450283,-1633.75,0.00011095,2]
[348717492,1736747450292,-1009.58,0.00011095,2]
[348717493,1736747450302,-500.0,0.00011095,2]
[348717494,1736747450311,-897.05,0.00011095,2]
[348717495,1736747450321,-642.1,0.00011095,2]
[348717496,1736747450331,-2244.35,0.00011095,2]
[348717497,1736747450340,-2174.12,0.00011095,2]
[348717498,1736747450350,-284.08531299,0.00011095,2]
[348717499,1736747450359,-654.37,0.00011095,2]
[348717500,1736747450368,-1286.4,0.00011095,2]
[348717501,1736747450377,-513.99,0.00011095,2]
[348717502,1736747450387,-843.37,0.00011095,2]
[348717503,1736747450397,-2480.9,0.00011095,2]
[348717504,1736747450408,-1557.94,0.00011095,2]
[348717505,1736747450417,-924.59,0.00011095,2]
[348717506,1736747450426,-734.07,0.00011095,2]
[348717507,1736747450436,-830.82,0.00011095,2]
[348717508,1736747450445,-773.74,0.00011095,2]
[348717509,1736747450455,-167.13598397,0.00011099,2]
[348717510,1736747450464,-758.32,0.00011368,2]
[348717511,1736747450474,-599.73,0.00011368,2]
[348717512,1736747450484,-500.0,0.00011368,2]
[348717513,1736747450494,-817.05,0.00011368,2]
[348717514,1736747450503,-519.54,0.00011368,2]
[348717515,1736747450513,-585.5,0.00011368,2]
[348717516,1736747450522,-500.0,0.00011368,2]
[348717517,1736747450532,-587.31,0.00011368,2]
[348717518,1736747450542,-500.0,0.00011368,2]
[348717519,1736747450552,-500.0,0.00011368,2]
[348717520,1736747450561,-500.0,0.00011368,2]
[348717521,1736747450571,-500.0,0.00011368,2]
[348717522,1736747450581,-533.27,0.00011368,2]
[348717523,1736747450590,-500.0,0.00011368,2]
[348717524,1736747450600,-500.0,0.00011368,2]
[348717525,1736747450610,-500.0,0.00011368,2]
[348717526,1736747450620,-500.0,0.00011368,2]
[348717527,1736747450629,-500.0,0.00011368,2]
[348717528,1736747450638,-903.86,0.00011368,2]
[348717529,1736747450647,-980.02,0.00011368,2]
[348717530,1736747450659,-513.82,0.00011368,2]
[348717531,1736747450668,-1096.82,0.00011368,2]
[348717532,1736747450678,-500.0,0.00011368,2]
[348717533,1736747450688,-1713.73,0.00011368,2]
[348717534,1736747450697,-500.0,0.00011368,2]
[348717535,1736747450707,-500.0,0.00011368,2]
[348717536,1736747450716,-500.0,0.00011368,2]
[348717537,1736747450726,-1127.49,0.00011368,2]
[348717538,1736747450735,-760.99,0.00011368,2]
[348717539,1736747450745,-500.0,0.00011368,2]
[348717540,1736747450754,-502.19,0.00011368,2]
[348717541,1736747450764,-2098.79,0.00011368,2]
[348717542,1736747450774,-500.0,0.00011368,2]
[348717543,1736747450783,-500.0,0.00011368,2]
[348717544,1736747450794,-500.0,0.00011368,2]
[348717545,1736747450803,-500.0,0.00011368,2]
[348717546,1736747450814,-500.0,0.00011368,2]
[348717547,1736747450824,-3120.37,0.00011368,2]
[348717548,1736747450834,-500.0,0.00011368,2]
[348717549,1736747450844,-500.0,0.00011368,2]
[348717550,1736747450854,-1987.26,0.00011368,2]
[348717551,1736747450864,-500.0,0.00011368,2]
[348717552,1736747450874,-533.88,0.00011368,2]
[348717553,1736747450883,-500.0,0.00011368,2]
[348717554,1736747450894,-715.98,0.00011368,2]
[348717555,1736747450904,-500.0,0.00011368,2]
[348717556,1736747450914,-500.0,0.00011368,2]
[348717557,1736747450924,-500.0,0.00011368,2]
[348717558,1736747450934,-500.0,0.00011368,2]
[348717559,1736747450943,-500.0,0.00011368,2]
[348717560,1736747450953,-500.0,0.00011368,2]
[348717561,1736747450967,-500.0,0.00011368,2]
[348717562,1736747450978,-500.0,0.00011368,2]
[348717563,1736747450988,-528.35,0.00011368,2]
[348717564,1736747450998,-2018.76,0.00011368,2]
[348717565,1736747451009,-500.0,0.00011368,2]
[348717566,1736747451020,-500.0,0.00011368,2]
[348717567,1736747451238,-500.0,0.00011368,2]
[348717568,1736747451258,-524.34,0.00011368,2]
[348717569,1736747451267,-693.44,0.00011368,2]
[348717570,1736747451276,-500.0,0.00011368,2]
[348717571,1736747451287,-1280.18,0.00011368,2]
[348717572,1736747451296,-2061.82,0.00011368,2]
[348717573,1736747451306,-500.0,0.00011368,2]
[348717574,1736747451315,-500.0,0.00011368,2]
[348717575,1736747451325,-1346.82,0.00011368,2]
[348717576,1736747451335,-500.0,0.00011368,2]
[348717577,1736747451345,-724.25,0.00011368,2]
[348717578,1736747451354,-1253.85,0.00011368,2]
[348717579,1736747451364,-500.0,0.00011368,2]
[348717580,1736747451374,-1920.53,0.00011368,2]
[348717581,1736747451383,-500.0,0.00011368,2]
[348717582,1736747451393,-642.34,0.00011368,2]
[348717583,1736747451403,-500.0,0.00011368,2]
[348717584,1736747451414,-500.0,0.00011368,2]
[348717585,1736747451424,-758.888155,0.00011368,2]
[348717586,1736747451433,-501.67,0.00011368,2]
[348717587,1736747451443,-500.0,0.00011368,2]
[348717588,1736747451453,-1935.84,0.00011368,2]
[348717589,1736747451463,-557.74,0.00011368,2]
[348717590,1736747451473,-500.0,0.00011368,2]
[348717591,1736747451483,-1195.61,0.00011368,2]
[348717592,1736747451492,-768.963322,0.00011368,2]
[348717593,1736747451502,-906.94,0.00011368,2]
[348717594,1736747451512,-500.0,0.00011368,2]
[348717595,1736747451521,-902.61,0.00011368,2]
[348717596,1736747451531,-500.0,0.00011368,2]
[348717597,1736747451541,-500.0,0.00011368,2]
[348717598,1736747451550,-500.0,0.00011368,2]
[348717599,1736747451560,-500.0,0.00011368,2]
[348717600,1736747451570,-559.16,0.00011368,2]
[348717601,1736747451581,-500.0,0.00011368,2]
[348717602,1736747451591,-753.36,0.00011368,2]
[348717603,1736747451601,-500.0,0.00011368,2]
[348717604,1736747451610,-500.0,0.00011368,2]
[348717605,1736747451620,-835.87,0.00011368,2]
[348717606,1736747451629,-500.0,0.00011368,2]
[348717607,1736747451639,-1005.33,0.00011368,2]
[348717608,1736747451650,-2727.04,0.00011368,2]
[348717609,1736747451660,-500.0,0.00011369,2]
[348717610,1736747451669,-500.0,0.00011369,2]
[348717611,1736747451679,-1355.33,0.00011369,2]
[348717612,1736747451689,-500.0,0.00011369,2]
[348717613,1736747451698,-887.86,0.00011369,2]
[348717614,1736747451707,-500.0,0.00011369,2]
[348717615,1736747451717,-500.0,0.00011369,2]
[348717616,1736747451726,-523.02,0.00011369,2]
[348717617,1736747451736,-500.0,0.00011369,2]
[348717618,1736747451746,-519.53,0.00011369,2]
[348717619,1736747451756,-500.0,0.00011369,2]
[348717620,1736747451766,-551.06,0.00011369,2]
[348717621,1736747451776,-500.0,0.00011369,2]
[348717622,1736747451785,-542.73,0.00011369,2]
[348717623,1736747451795,-549.91,0.00011369,2]
[348717624,1736747451804,-607.28,0.00011369,2]
[348717625,1736747451815,-1039.92,0.00011369,2]
[348717626,1736747451825,-538.94,0.00011369,2]
[348717627,1736747451835,-676.48,0.00011369,2]
[348717628,1736747451845,-569.61,0.00011369,2]
[348717629,1736747451855,-500.0,0.00011369,2]
[348717630,1736747451865,-715.87,0.00011369,2]
[348717631,1736747451874,-906.84,0.00011369,2]
[348717632,1736747451885,-1175.79,0.00011369,2]
[348717633,1736747451895,-734.49,0.00011369,2]
[348717634,1736747451904,-1576.26,0.00011369,2]
[348717635,1736747451914,-1567.89,0.00011369,2]
[348717636,1736747451923,-1674.49,0.00011369,2]
[348717637,1736747451933,-1346.57,0.00011369,2]
[348717638,1736747451943,-926.0,0.00011369,2]
[348717639,1736747451952,-1154.7,0.00011369,2]
[348717640,1736747451962,-607.5,0.00011369,2]
[348717641,1736747451975,-2152.95,0.00011369,2]
[348717642,1736747451985,-669.02,0.00011369,2]
[348717643,1736747451995,-745.5,0.00011369,2]
[348717644,1736747452005,-2006.99,0.00011369,2]
[348717645,1736747452015,-669.52,0.00011369,2]
[348717646,1736747452024,-1633.75,0.00011369,2]
[348717647,1736747452034,-1009.58,0.00011369,2]
[348717648,1736747452045,-500.0,0.00011369,2]
[348717649,1736747452056,-897.05,0.00011369,2]
[348717650,1736747452067,-642.1,0.00011369,2]
[348717651,1736747452077,-2244.35,0.00011369,2]
[348717652,1736747452087,-2174.12,0.00011369,2]
[348717653,1736747452097,-654.37,0.00011369,2]
[348717654,1736747452106,-1286.4,0.00011369,2]
[348717655,1736747452116,-513.99,0.00011369,2]
[348717656,1736747452126,-843.37,0.00011369,2]
[348717657,1736747452136,-2480.9,0.00011369,2]
[348717658,1736747452146,-1557.94,0.00011369,2]
[348717659,1736747452155,-924.59,0.00011369,2]
[348717660,1736747452164,-734.07,0.00011369,2]
[348717661,1736747452174,-830.82,0.00011369,2]
[348717662,1736747452183,-773.74,0.00011369,2]
[348717663,1736747452193,-502.0,0.00011397,2]
[348717664,1736747452203,-725.61,0.0001148,2]
[348717665,1736747452212,-100266.30256508,0.000115,2]
[348717666,1736747452222,-2751.0,0.00011507,2]
[348717667,1736747452231,-1000.0,0.00011541,2]
[348717668,1736747452240,-758.32,0.00011642,2]
[348717669,1736747452250,-599.73,0.00011642,2]
[348717670,1736747452259,-500.0,0.00011642,2]
[348717671,1736747452268,-817.05,0.00011642,2]
[348717672,1736747452278,-519.54,0.00011642,2]
[348717673,1736747452288,-585.5,0.00011642,2]
[348717674,1736747452297,-500.0,0.00011642,2]
[348717675,1736747452306,-587.31,0.00011642,2]
[348717676,1736747452316,-500.0,0.00011642,2]
[348717677,1736747452325,-500.0,0.00011642,2]
[348717678,1736747452334,-500.0,0.00011642,2]
[348717679,1736747452344,-500.0,0.00011642,2]
[348717680,1736747452354,-533.27,0.00011642,2]
[348717681,1736747452363,-500.0,0.00011642,2]
[348717682,1736747452372,-513.03265134,0.00011642,2]
[348717683,1736747452381,-500.0,0.00011642,2]
[348717684,1736747452391,-500.0,0.00011642,2]
[348717685,1736747452400,-500.0,0.00011642,2]
[348717686,1736747452411,-903.86,0.00011642,2]
[348717687,1736747452421,-980.02,0.00011642,2]
[348717688,1736747452430,-513.82,0.00011642,2]
[348717689,1736747452439,-1096.82,0.00011642,2]
[348717690,1736747452449,-500.0,0.00011642,2]
[348717691,1736747452458,-1713.73,0.00011642,2]
[348717692,1736747452467,-582.92604277,0.00011642,2]
[348717693,1736747452476,-500.0,0.00011642,2]
[348717694,1736747452486,-500.0,0.00011642,2]
[348717695,1736747452495,-1127.49,0.00011642,2]
[348717696,1736747452505,-760.99,0.00011642,2]
[348717697,1736747452514,-500.0,0.00011642,2]
[348717698,1736747452523,-502.19,0.00011642,2]
[348717699,1736747452533,-2098.79,0.00011642,2]
[348717700,1736747452542,-500.0,0.00011642,2]
[348717701,1736747452551,-500.0,0.00011642,2]
[348717702,1736747452561,-500.0,0.00011642,2]
[348717703,1736747452570,-500.0,0.00011642,2]
[348717704,1736747452579,-500.0,0.00011642,2]
[348717705,1736747452588,-3120.37,0.00011642,2]
[348717706,1736747452597,-500.0,0.00011642,2]
[348717707,1736747452606,-500.0,0.00011642,2]
[348717708,1736747452616,-1987.26,0.00011642,2]
[348717709,1736747452626,-500.0,0.00011642,2]
[348717710,1736747452635,-533.88,0.00011642,2]
[348717711,1736747452645,-500.0,0.00011642,2]
[348717712,1736747452654,-715.98,0.00011642,2]
[348717713,1736747452664,-500.0,0.00011642,2]
[348717714,1736747452673,-500.0,0.00011642,2]
[348717715,1736747452683,-500.0,0.00011642,2]
[348717716,1736747452692,-500.0,0.00011642,2]
[348717717,1736747452702,-500.0,0.00011642,2]
[348717718,1736747452712,-500.0,0.00011642,2]
[348717719,1736747452721,-500.0,0.00011642,2]
[348717720,1736747452731,-500.0,0.00011642,2]
[348717721,1736747452740,-528.35,0.00011642,2]
[348717722,1736747452750,-2018.76,0.00011642,2]
[348717723,1736747452759,-500.0,0.00011642,2]
[348717724,1736747452769,-500.0,0.00011642,2]
[348717725,1736747452779,-500.0,0.00011642,2]
[348717726,1736747452788,-693.44,0.00011642,2]
[348717727,1736747452797,-524.34,0.00011642,2]
[348717728,1736747452807,-500.0,0.00011642,2]
[348717729,1736747452816,-1280.18,0.00011642,2]
[348717730,1736747452825,-2061.82,0.00011642,2]
[348717731,1736747452834,-500.0,0.00011642,2]
[348717732,1736747452843,-500.0,0.00011642,2]
[348717733,1736747452853,-1346.82,0.00011642,2]
[348717734,1736747452862,-500.0,0.00011642,2]
[348717735,1736747452871,-724.25,0.00011642,2]
[348717736,1736747452881,-1253.85,0.00011642,2]
[348717737,1736747452891,-500.0,0.00011642,2]
[348717738,1736747452900,-1920.53,0.00011642,2]
[348717739,1736747452913,-500.0,0.00011642,2]
[348717740,1736747452923,-642.34,0.00011642,2]
[348717741,1736747452932,-500.0,0.00011642,2]
[348717742,1736747452942,-500.0,0.00011642,2]
[348717743,1736747452951,-758.888155,0.00011642,2]
[348717744,1736747452961,-501.67,0.00011642,2]
[348717745,1736747452972,-500.0,0.00011642,2]
[348717746,1736747452982,-1935.84,0.00011642,2]
[348717747,1736747452991,-557.74,0.00011642,2]
[348717748,1736747453001,-500.0,0.00011642,2]
[348717749,1736747453013,-1195.61,0.00011642,2]
[348717750,1736747453022,-768.963322,0.00011642,2]
[348717751,1736747453031,-906.94,0.00011642,2]
[348717752,1736747453043,-510.2340983,0.00011642,2]
[348717753,1736747453053,-902.61,0.00011642,2]
[348717754,1736747453064,-500.0,0.00011642,2]
[348717755,1736747453074,-500.0,0.00011642,2]
[348717756,1736747453083,-500.0,0.00011642,2]
[348717757,1736747453092,-500.0,0.00011642,2]
[348717758,1736747453102,-559.16,0.00011642,2]
[348717759,1736747453112,-500.0,0.00011642,2]
[348717760,1736747453122,-753.36,0.00011642,2]
[348717761,1736747453132,-556.16417384,0.00011642,2]
[348717762,1736747453141,-401.20976809,0.00011642,2]
[348717763,1736747453151,-835.87,0.00011642,2]
[348717764,1736747453162,-500.0,0.00011642,2]
[348717765,1736747453172,-1005.33,0.00011642,2]
[348717766,1736747453182,-2727.04,0.00011642,2]
[348717767,1736747453191,-500.0,0.00011643,2]
[348717768,1736747453201,-413.96392957,0.00011643,2]
[348717769,1736747453211,-1355.33,0.00011643,2]
[348717770,1736747453221,-500.0,0.00011643,2]
[348717771,1736747453231,-887.86,0.00011643,2]
[348717772,1736747453240,-500.0,0.00011643,2]
[348717773,1736747453249,-500.0,0.00011643,2]
[348717774,1736747453258,-523.02,0.00011643,2]
[348717775,1736747453267,-500.0,0.00011643,2]
[348717776,1736747453277,-519.53,0.00011643,2]
[348717777,1736747453287,-500.0,0.00011643,2]
[348717778,1736747453296,-551.06,0.00011643,2]
[348717779,1736747453305,-500.0,0.00011643,2]
[348717780,1736747453314,-542.73,0.00011643,2]
[348717781,1736747453324,-549.91,0.00011643,2]
[348717782,1736747453333,-607.28,0.00011643,2]
[348717783,1736747453343,-1039.92,0.00011643,2]
[348717784,1736747453353,-538.94,0.00011643,2]
[348717785,1736747453362,-676.48,0.00011643,2]
[348717786,1736747453373,-569.61,0.00011643,2]
[348717787,1736747453382,-500.0,0.00011643,2]
[348717788,1736747453392,-715.87,0.00011643,2]
[348717789,1736747453402,-906.84,0.00011643,2]
[348717790,1736747453412,-1175.79,0.00011643,2]
[348717791,1736747453423,-734.49,0.00011643,2]
[348717792,1736747453432,-1576.26,0.00011643,2]
[348717793,1736747453442,-1674.49,0.00011643,2]
[348717794,1736747453453,-1567.89,0.00011643,2]
[348717795,1736747453462,-1346.57,0.00011643,2]
[348717796,1736747453473,-926.0,0.00011643,2]
[348717797,1736747453482,-1154.7,0.00011643,2]
[348717798,1736747453492,-607.5,0.00011643,2]
[348717799,1736747453502,-2152.95,0.00011643,2]
[348717800,1736747453511,-669.02,0.00011643,2]
[348717801,1736747453520,-745.5,0.00011643,2]
[348717802,1736747453530,-2006.99,0.00011643,2]
[348717803,1736747453539,-669.52,0.00011643,2]
[348717804,1736747453598,-1633.75,0.00011643,2]
[348717805,1736747453607,-1009.58,0.00011643,2]
[348717806,1736747453617,-500.0,0.00011643,2]
[348717807,1736747453626,-897.05,0.00011643,2]
[348717808,1736747453636,-642.1,0.00011643,2]
[348717809,1736747453645,-2244.35,0.00011643,2]
[348717810,1736747453655,-2174.12,0.00011643,2]
[348717811,1736747453665,-654.37,0.00011643,2]
[348717812,1736747453675,-1286.4,0.00011643,2]
[348717813,1736747453685,-513.99,0.00011643,2]
[348717814,1736747453695,-843.37,0.00011643,2]
[348717815,1736747453704,-2480.9,0.00011643,2]
[348717816,1736747453713,-1557.94,0.00011643,2]
[348717817,1736747453723,-924.59,0.00011643,2]
[348717818,1736747453732,-734.07,0.00011643,2]
[348717819,1736747453743,-830.82,0.00011643,2]
[348717820,1736747453752,-773.74,0.00011643,2]
[348717821,1736747453762,-599.14,0.00011666,2]
[348717822,1736747453771,-584.54805164,0.000119,2]
[348717823,1736747453781,-758.32,0.00011916,2]
[348717824,1736747453790,-599.73,0.00011916,2]
[348717825,1736747453800,-500.0,0.00011916,2]
[348717826,1736747453810,-817.05,0.00011916,2]
[348717827,1736747453819,-519.54,0.00011916,2]
[348717828,1736747453828,-585.5,0.00011916,2]
[348717829,1736747453837,-500.0,0.00011916,2]
[348717830,1736747453847,-587.31,0.00011916,2]
[348717831,1736747453857,-500.0,0.00011916,2]
[348717832,1736747453866,-500.0,0.00011916,2]
[348717833,1736747453876,-500.0,0.00011916,2]
[348717834,1736747453885,-500.0,0.00011916,2]
[348717835,1736747453896,-533.27,0.00011916,2]
[348717836,1736747453907,-500.0,0.00011916,2]
[348717837,1736747453916,-500.0,0.00011916,2]
[348717838,1736747453925,-500.0,0.00011916,2]
[348717839,1736747453935,-500.0,0.00011916,2]
[348717840,1736747453944,-903.86,0.00011916,2]
[348717841,1736747453955,-980.02,0.00011916,2]
[348717842,1736747453969,-513.82,0.00011916,2]
[348717843,1736747453979,-1096.82,0.00011916,2]
[348717844,1736747453988,-500.0,0.00011916,2]
[348717845,1736747453999,-1713.73,0.00011916,2]
[348717846,1736747454009,-500.0,0.00011916,2]
[348717847,1736747454019,-500.0,0.00011916,2]
[348717848,1736747454028,-1127.49,0.00011916,2]
[348717849,1736747454037,-760.99,0.00011916,2]
[348717850,1736747454048,-500.0,0.00011916,2]
[348717851,1736747454058,-502.19,0.00011916,2]
[348717852,1736747454067,-2098.79,0.00011916,2]
[348717853,1736747454076,-500.0,0.00011916,2]
[348717854,1736747454086,-500.0,0.00011916,2]
[348717855,1736747454094,-500.0,0.00011916,2]
[348717856,1736747454104,-500.0,0.00011916,2]
[348717857,1736747454114,-500.0,0.00011916,2]
[348717858,1736747454124,-3120.37,0.00011916,2]
[348717859,1736747454134,-500.0,0.00011916,2]
[348717860,1736747454144,-500.0,0.00011916,2]
[348717861,1736747454154,-500.0,0.00011916,2]
[348717862,1736747454164,-1987.26,0.00011916,2]
[348717863,1736747454173,-533.88,0.00011916,2]
[348717864,1736747454182,-500.0,0.00011916,2]
[348717865,1736747454193,-715.98,0.00011916,2]
[348717866,1736747454204,-500.0,0.00011916,2]
[348717867,1736747454213,-500.0,0.00011916,2]
[348717868,1736747454223,-199.61137722,0.00011916,2]
[348717869,1736747454232,-500.0,0.00011916,2]
[348717870,1736747454242,-500.0,0.00011916,2]
[348717871,1736747454253,-534.37873484,0.00011916,2]
[348717872,1736747454262,-500.0,0.00011916,2]
[348717873,1736747454272,-500.0,0.00011916,2]
[348717874,1736747454281,-528.35,0.00011916,2]
[348717875,1736747454290,-2018.76,0.00011916,2]
[348717876,1736747454299,-500.0,0.00011916,2]
[348717877,1736747454308,-500.0,0.00011916,2]
[348717878,1736747454318,-500.0,0.00011916,2]
[348717879,1736747454327,-693.44,0.00011916,2]
[348717880,1736747454337,-524.34,0.00011916,2]
[348717881,1736747454346,-500.0,0.00011916,2]
[348717882,1736747454357,-1280.18,0.00011916,2]
[348717883,1736747454365,-2061.82,0.00011916,2]
[348717884,1736747454374,-500.0,0.00011916,2]
[348717885,1736747454384,-500.0,0.00011916,2]
[348717886,1736747454393,-1346.82,0.00011916,2]
[348717887,1736747454402,-500.0,0.00011916,2]
[348717888,1736747454411,-724.25,0.00011916,2]
[348717889,1736747454420,-1253.85,0.00011916,2]
[348717890,1736747454429,-500.0,0.00011916,2]
[348717891,1736747454440,-1920.53,0.00011916,2]
[348717892,1736747454449,-500.0,0.00011916,2]
[348717893,1736747454459,-642.34,0.00011916,2]
[348717894,1736747454468,-500.0,0.00011916,2]
[348717895,1736747454479,-500.0,0.00011916,2]
[348717896,1736747454488,-758.888155,0.00011916,2]
[348717897,1736747454497,-501.67,0.00011916,2]
[348717898,1736747454506,-500.0,0.00011916,2]
[348717899,1736747454515,-1935.84,0.00011916,2]
[348717900,1736747454525,-557.74,0.00011916,2]
[348717901,1736747454534,-500.0,0.00011916,2]
[348717902,1736747454543,-1195.61,0.00011916,2]
[348717903,1736747454552,-768.963322,0.00011916,2]
[348717904,1736747454561,-906.94,0.00011916,2]
[348717905,1736747454570,-902.61,0.00011916,2]
[348717906,1736747454579,-500.0,0.00011916,2]
[348717907,1736747454588,-500.0,0.00011916,2]
[348717908,1736747454598,-500.0,0.00011916,2]
[348717909,1736747454607,-500.0,0.00011916,2]
[348717910,1736747454616,-559.16,0.00011916,2]
[348717911,1736747454625,-500.0,0.00011916,2]
[348717912,1736747454635,-753.36,0.00011916,2]
[348717913,1736747454644,-835.87,0.00011916,2]
[348717914,1736747454653,-500.0,0.00011916,2]
[348717915,1736747454663,-1005.33,0.00011916,2]
[348717916,1736747454672,-2727.04,0.00011916,2]
[348717917,1736747454681,-500.0,0.00011917,2]
[348717918,1736747454690,-1355.33,0.00011917,2]
[348717919,1736747454699,-500.0,0.00011917,2]
[348717920,1736747454708,-887.86,0.00011917,2]
[348717921,1736747454717,-500.0,0.00011917,2]
[348717922,1736747454726,-500.0,0.00011917,2]
[348717923,1736747454735,-523.02,0.00011917,2]
[348717924,1736747454745,-500.0,0.00011917,2]
[348717925,1736747454754,-519.53,0.00011917,2]
[348717926,1736747454762,-500.0,0.00011917,2]
[348717927,1736747454771,-551.06,0.00011917,2]
[348717928,1736747454780,-500.0,0.00011917,2]
[348717929,1736747454789,-542.73,0.00011917,2]
[348717930,1736747454797,-549.91,0.00011917,2]
[348717931,1736747454807,-607.28,0.00011917,2]
[348717932,1736747454816,-1039.92,0.00011917,2]
[348717933,1736747454825,-538.94,0.00011917,2]
[348717934,1736747454834,-676.48,0.00011917,2]
[348717935,1736747454843,-569.61,0.00011917,2]
[348717936,1736747454852,-500.0,0.00011917,2]
[348717937,1736747454861,-715.87,0.00011917,2]
[348717938,1736747454870,-906.84,0.00011917,2]
[348717939,1736747454879,-1175.79,0.00011917,2]
[348717940,1736747454888,-734.49,0.00011917,2]
[348717941,1736747454897,-1576.26,0.00011917,2]
[348717942,1736747454906,-1674.49,0.00011917,2]
[348717943,1736747454915,-1567.89,0.00011917,2]
[348717944,1736747454924,-1346.57,0.00011917,2]
[348717945,1736747454933,-926.0,0.00011917,2]
[348717946,1736747454942,-1154.7,0.00011917,2]
[348717947,1736747454950,-607.5,0.00011917,2]
[348717948,1736747454960,-2152.95,0.00011917,2]
[348717949,1736747454972,-669.02,0.00011917,2]
[348717950,1736747454981,-745.5,0.00011917,2]
[348717951,1736747454989,-2006.99,0.00011917,2]
[348717952,1736747454999,-669.52,0.00011917,2]
[348717953,1736747455009,-1633.75,0.00011917,2]
[348717954,1736747455017,-1009.58,0.00011917,2]
[348717955,1736747455026,-500.0,0.00011917,2]
[348717956,1736747455035,-897.05,0.00011917,2]
[348717957,1736747455047,-642.1,0.00011917,2]
[348717958,1736747455057,-2244.35,0.00011917,2]
[348717959,1736747455067,-2174.12,0.00011917,2]
[348717960,1736747455076,-1286.4,0.00011917,2]
[348717961,1736747455085,-654.37,0.00011917,2]
[348717962,1736747455094,-513.99,0.00011917,2]
[348717963,1736747455103,-843.37,0.00011917,2]
[348717964,1736747455112,-1557.94,0.00011917,2]
[348717965,1736747455121,-2480.9,0.00011917,2]
[348717966,1736747455131,-924.59,0.00011917,2]
[348717967,1736747455139,-734.07,0.00011917,2]
[348717968,1736747455148,-830.82,0.00011917,2]
[348717969,1736747455159,-773.74,0.00011917,2]
[348717970,1736747455169,-2016.0,0.00011967,2]
[348717971,1736747455179,-635.0,0.00011967,2]
[348717972,1736747455187,-566.0,0.00011967,2]
[348717973,1736747455196,-455.595,0.00011967,2]
[348717974,1736747455205,-2944.0,0.00011967,2]
[348717975,1736747455214,-3897.0,0.00011967,2]
[348717976,1736747455223,-150.0,0.00011967,2]
[348717977,1736747455232,-1174.0,0.00011967,2]
[348717978,1736747455241,-19101.80881744,0.00012,3]
[348717979,1736747455250,-29664.69010218,0.00012,3]
[348717980,1736747455259,-8012.44025876,0.00012,4]
[348717981,1736747455267,-57412.25716205,0.00012,2]
[348717982,1736747455277,-48395.26130361,0.00012,2]
[348717983,1736747455288,-583027.56557937,0.00012,2]
[348717984,1736747455523,-11897.1144584,0.00012,2]